bitfinex/quotes_SOLUSD_20241215
["timestamp","ask_amount","ask_price","bid_price","bid_amount"]
[1734247664167,1.5338,217.55,217.45,8.01946634]
[1734247664359,1.5338,217.55,217.43,28.01946634]
[1734247664663,1.5338,217.55,217.44,8.01946634]
[1734247664840,1.5338,217.55,217.43,20.0]
[1734247665042,1.5338,217.55,217.43,28.01946634]
[1734247665345,1.5338,217.55,217.44,8.01946634]
[1734247665864,1.5338,217.55,217.43,8.01946634]
[1734247670378,20.0,217.54,217.42,8.01946634]
[1734247672583,20.0,217.54,217.39,20.541143]
[1734247672769,20.0,217.54,217.4,8.01946634]
[1734247673447,20.0,217.5,217.39,0.541143]
[1734247673651,1.5024,217.49,217.39,0.541143]
[1734247674195,6.2634,217.48,217.39,0.541143]
[1734247677286,23.902374,217.47,217.39,0.541143]
[1734247677480,6.2634,217.48,217.39,0.541143]
[1734247678455,6.2634,217.48,217.4,8.01946634]
[1734247679172,6.2634,217.48,217.39,1.230964]
[1734247679368,6.2634,217.48,217.4,8.01946634]
[1734247680269,6.2634,217.48,217.41,8.01946634]
[1734247680470,5.6843,217.53,217.45,8.01946634]
[1734247680967,5.1843,217.53,217.45,8.01946634]
[1734247681314,5.1843,217.53,217.44,8.01946634]
[1734247682151,5.1843,217.53,217.43,8.01946634]
[1734247683299,5.1843,217.53,217.45,8.01946634]
[1734247684688,5.1843,217.53,217.44,8.01946634]
[1734247689393,5.1843,217.53,217.46,8.01946634]
[1734247691222,5.1843,217.53,217.47,0.25098]
[1734247691394,1.5085,217.54,217.47,0.25098]
[1734247691395,1.5085,217.54,217.47,8.95997057]
[1734247692207,6.1775,217.58,217.47,8.95997057]
[1734247692404,6.1775,217.58,217.49,0.25098]
[1734247693917,6.1775,217.58,217.51,0.25098]
[1734247694117,6.1775,217.58,217.51,8.27044634]
[1734247695500,6.1775,217.58,217.48,8.14495634]
[1734247695898,6.1775,217.58,217.48,0.12549]
[1734247696204,6.1775,217.58,217.48,8.14495634]
[1734247696605,6.1775,217.58,217.47,8.01946634]
[1734247697945,6.1775,217.58,217.4,9.96372444]
[1734247698124,6.1775,217.58,217.44,8.01946634]
[1734247699041,20.0,217.55,217.43,8.01946634]
[1734247699331,23.902374,217.57,217.42,8.01946634]
[1734247699332,1.5804,217.53,217.42,8.01946634]
[1734247702127,6.1775,217.52,217.42,8.01946634]
[1734247704533,6.1775,217.52,217.41,8.01946634]
[1734247707047,6.1775,217.52,217.4,8.01946634]
[1734247707535,6.1775,217.52,217.39,8.56060934]
[1734247707536,20.0,217.49,217.39,8.56060934]
[1734247707844,20.0,217.49,217.39,0.541143]
[1734247708215,20.0,217.49,217.4,8.01946634]
[1734247709028,20.0,217.49,217.39,8.56060934]
[1734247711440,6.1775,217.52,217.41,8.01946634]
[1734247713837,6.1775,217.52,217.4,8.01946634]
[1734247714142,6.1775,217.52,217.39,8.56060934]
[1734247715037,6.1775,217.52,217.4,8.01946634]
[1734247715837,6.1775,217.52,217.41,8.01946634]
[1734247719148,6.1775,217.52,217.4,8.01946634]
[1734247719734,6.1775,217.52,217.39,8.56060934]
[1734247721827,20.0,217.38,217.28,7.15948724]
[1734247722038,20.0,217.38,217.18,1.641]
[1734247722039,20.0,217.38,217.3,13.93]
[1734247722243,20.0,217.38,217.24,8.01946634]
[1734247722445,23.776884,217.37,217.24,8.01946634]
[1734247722946,27.93919499,217.38,217.24,8.01946634]
[1734247723155,6.7669187,217.37,217.22,20.0]
[1734247723332,6.7669187,217.37,217.25,8.01946634]
[1734247723739,23.776884,217.32,217.19,0.69028579]
[1734247724064,5.6878187,217.37,217.3,8.01946634]
[1734247724065,0.6878187,217.37,217.3,8.01946634]
[1734247724253,0.6878187,217.37,217.31,0.12549]
[1734247724445,0.6878187,217.37,217.3,7.64495634]
[1734247724643,0.6878187,217.37,217.28,8.01946634]
[1734247724953,0.6878187,217.37,217.26,0.69015011]
[1734247725134,0.6878187,217.37,217.29,0.12549]
[1734247725335,0.6878187,217.38,217.29,0.12549]
[1734247725938,0.6878187,217.38,217.29,8.14495634]
[1734247726834,0.6878187,217.38,217.3,0.12549]
[1734247727558,0.6878187,217.38,217.3,8.01946634]
[1734247727748,0.6878187,217.38,217.31,0.25098]
[1734247729271,0.6878187,217.38,217.3,0.25098]
[1734247730561,0.6878187,217.38,217.31,0.12549]
[1734247731960,0.6878187,217.38,217.31,8.14495634]
[1734247732155,0.6878187,217.38,217.33,0.12549]
[1734247734761,0.6878187,217.38,217.32,0.25098]
[1734247735248,20.0,217.39,217.33,0.12549]
[1734247735850,0.6878187,217.38,217.33,0.12549]
[1734247736157,0.6878187,217.38,217.32,0.12549]
[1734247736474,0.6878187,217.38,217.3,23.902374]
[1734247736659,0.6878187,217.38,217.31,0.12549]
[1734247737051,0.6878187,217.38,217.29,24.027864]
[1734247737251,0.6878187,217.38,217.29,32.04733034]
[1734247738086,0.6878187,217.38,217.32,0.12549]
[1734247738287,0.6878187,217.38,217.32,0.25098]
[1734247738946,20.0,217.39,217.32,8.27044634]
[1734247739143,20.0,217.39,217.25,32.07786536]
[1734247739144,0.6878187,217.41,217.34,24.027864]
[1734247740289,0.6878187,217.41,217.34,0.12549]
[1734247740444,0.6878187,217.41,217.31,23.776884]
[1734247740650,0.6878187,217.41,217.21,6.3146]
[1734247740651,19.5,217.39,217.29,23.776884]
[1734247740876,0.6878187,217.38,217.28,8.01946634]
[1734247742188,0.6878187,217.38,217.31,24.027864]
[1734247742390,0.6878187,217.38,217.33,31.92184034]
[1734247742599,0.6878187,217.41,217.35,0.12549]
[1734247743673,0.6878187,217.41,217.33,24.027864]
[1734247743884,20.0,217.39,217.26,20.0]
[1734247744078,0.6878187,217.38,217.25,0.12549]
[1734247744279,0.6878187,217.38,217.3,0.25098]
[1734247744676,0.6878187,217.38,217.32,0.25098]
[1734247744985,0.6878187,217.38,217.32,8.27044634]
[1734247745185,0.6878187,217.38,217.34,0.25098]
[1734247745670,0.6878187,217.38,217.33,0.12549]
[1734247746215,0.6878187,217.38,217.32,23.902374]
[1734247746216,0.6878187,217.38,217.32,0.12549]
[1734247750893,20.0,217.39,217.32,0.12549]
[1734247751075,0.6878187,217.41,217.35,0.12549]
[1734247751598,0.6878187,217.43,217.37,0.12549]
[1734247751893,0.6878187,217.43,217.36,23.776884]
[1734247752276,0.6878187,217.43,217.33,0.12549]
[1734247752473,0.6878187,217.43,217.35,0.12549]
[1734247752875,0.6878187,217.44,217.35,0.12549]
[1734247753676,0.6878187,217.44,217.34,0.12549]
[1734247754489,20.6878187,217.44,217.29,8.01946634]
[1734247754693,20.6878187,217.44,217.3,0.12549]
[1734247755293,20.6878187,217.44,217.31,0.12549]
[1734247755796,20.6878187,217.44,217.31,24.027864]
[1734247759586,20.6878187,217.44,217.3,8.01946634]
[1734247759587,20.6878187,217.44,217.3,24.027864]
[1734247760091,20.6878187,217.44,217.3,0.12549]
[1734247760286,20.6878187,217.44,217.31,0.12549]
[1734247762698,20.0,217.4,217.31,0.12549]
[1734247762897,2.3346187,217.39,217.31,0.12549]
[1734247764196,2.3346187,217.39,217.3,0.12549]
[1734247765086,2.3346187,217.39,217.29,0.25098]
[1734247767988,2.3346187,217.39,217.31,0.12549]
[1734247768196,2.3346187,217.39,217.33,24.027864]
[1734247768729,20.0,217.4,217.33,24.027864]
[1734247768894,6.5418,217.43,217.37,0.12549]
[1734247769202,7.2296187,217.43,217.37,0.12549]
[1734247770082,6.5418,217.43,217.37,0.12549]
[1734247771486,20.0,217.47,217.37,0.12549]
[1734247771690,0.6878187,217.46,217.37,0.12549]
[1734247772710,0.6878187,217.46,217.39,0.12549]
[1734247776717,20.0,217.47,217.39,0.12549]
[1734247777010,0.6878187,217.46,217.41,0.12549]
[1734247785614,0.6878187,217.49,217.41,0.12549]
[1734247788623,0.6878187,217.49,217.37,0.12549]
[1734247789204,20.0,217.47,217.37,0.25098]
[1734247789502,0.6878187,217.46,217.37,0.25098]
[1734247791247,0.6878187,217.46,217.26,7.15948724]
[1734247791427,0.6878187,217.46,217.33,8.01946634]
[1734247791634,0.6878187,217.46,217.34,0.12549]
[1734247792509,0.6878187,217.46,217.33,24.027864]
[1734247793999,0.6878187,217.46,217.33,0.12549]
[1734247794430,20.0,217.45,217.33,0.12549]
[1734247794604,0.6878187,217.44,217.33,0.12549]
[1734247795004,0.6878187,217.44,217.28,20.0]
[1734247795230,20.0,217.4,217.3,0.12549]
[1734247795535,0.6878187,217.39,217.3,0.12549]
[1734247796222,0.6878187,217.39,217.3,24.027864]
[1734247797214,0.6878187,217.39,217.26,0.69014734]
[1734247797409,0.6878187,217.39,217.28,8.01946634]
[1734247798038,0.6878187,217.39,217.29,0.12549]
[1734247798239,0.6878187,217.39,217.29,8.14495634]
[1734247798531,0.6878187,217.39,217.3,23.776884]
[1734247799112,0.6878187,217.39,217.31,0.12549]
[1734247800029,0.6878187,217.39,217.31,0.25098]
[1734247800228,0.6878187,217.39,217.26,0.69011953]
[1734247800412,0.6878187,217.39,217.33,24.027864]
[1734247800611,0.6878187,217.39,217.33,0.12549]
[1734247801116,0.6878187,217.39,217.32,0.12549]
[1734247803622,20.0,217.4,217.32,0.12549]
[1734247804030,0.6878187,217.39,217.32,0.12549]
[1734247805720,0.6878187,217.39,217.31,0.12549]
[1734247805917,0.6878187,217.39,217.25,1.5522]
[1734247806116,0.6878187,217.39,217.3,8.14495634]
[1734247807234,0.6878187,217.39,217.32,0.25098]
[1734247809836,0.6878187,217.39,217.23,0.69009554]
[1734247810040,20.6878187,217.39,217.21,3.43572166]
[1734247810417,20.6878187,217.39,217.25,8.01946634]
[1734247810611,20.6878187,217.39,217.26,0.12549]
[1734247811621,20.6878187,217.39,217.27,0.12549]
[1734247812451,0.6878187,217.39,217.31,23.776884]
[1734247812620,0.6878187,217.41,217.32,0.12549]
[1734247813763,20.0,217.4,217.32,0.12549]
[1734247813937,0.6878187,217.39,217.32,0.12549]
[1734247821291,1.6636,217.42,217.34,24.027864]
[1734247821423,6.562,217.43,217.34,32.33226825]
[1734247822347,6.562,217.43,217.35,8.01946634]
[1734247822930,20.0,217.44,217.36,8.7093572]
[1734247823249,0.6878187,217.46,217.37,8.01946634]
[1734247823460,2.3489187,217.47,217.38,8.70934659]
[1734247823628,2.3489187,217.52,217.42,8.01946634]
[1734247823829,2.3489187,217.52,217.43,32.04733034]
[1734247825154,20.0,217.51,217.43,32.04733034]
[1734247825358,0.6878187,217.53,217.43,32.04733034]
[1734247825533,6.3444,217.54,217.46,0.12549]
[1734247825735,1.6611,217.57,217.48,0.12549]
[1734247825930,1.6611,217.57,217.5,0.25098]
[1734247826367,4.15584385,217.62,217.54,0.12549]
[1734247826534,6.3444,217.7,217.57,23.902374]
[1734247826731,0.6878187,217.68,217.57,23.902374]
[1734247827037,0.6878187,217.68,217.57,0.12549]
[1734247827638,20.0,217.67,217.57,0.25098]
[1734247827857,0.6878187,217.66,217.57,0.25098]
[1734247828248,0.6878187,217.69,217.57,0.25098]
[1734247828955,0.6878187,217.69,217.57,0.12549]
[1734247829266,0.6878187,217.69,217.56,23.776884]
[1734247829267,20.0,217.67,217.56,23.776884]
[1734247829555,0.6878187,217.66,217.56,23.776884]
[1734247831061,0.6878187,217.66,217.54,24.027864]
[1734247832061,0.6878187,217.66,217.54,0.25098]
[1734247832281,0.6878187,217.66,217.54,0.12549]
[1734247833369,0.6878187,217.66,217.47,1.6128]
[1734247833370,20.12549,217.65,217.47,1.6128]
[1734247833571,20.0,217.61,217.47,1.6128]
[1734247833785,0.6878187,217.6,217.48,0.12549]
[1734247833982,0.6878187,217.6,217.48,8.14495634]
[1734247834556,0.6878187,217.6,217.51,24.027864]
[1734247834779,20.0,217.61,217.53,0.12549]
[1734247834954,20.0,217.61,217.53,0.25098]
[1734247835773,0.6878187,217.6,217.53,0.25098]
[1734247836362,0.6878187,217.63,217.52,0.12549]
[1734247836684,0.6878187,217.63,217.54,23.902374]
[1734247836854,6.2335,217.64,217.55,0.12549]
[1734247837878,0.6878187,217.68,217.57,32.04733034]
[1734247838069,0.6878187,217.68,217.59,24.027864]
[1734247838272,0.6878187,217.68,217.59,23.902374]
[1734247838470,0.6878187,217.68,217.57,23.902374]
[1734247838782,0.6878187,217.68,217.51,51.92184034]
[1734247839081,0.6878187,217.68,217.55,8.01946634]
[1734247839250,20.0,217.66,217.57,0.12549]
[1734247840084,20.0,217.72,217.6,23.902374]
[1734247840266,0.6878187,217.71,217.61,0.12549]
[1734247840466,0.6878187,217.71,217.54,8.14495634]
[1734247840667,20.0,217.67,217.56,0.12549]
[1734247840868,0.6878187,217.66,217.56,0.12549]
[1734247841678,0.6878187,217.66,217.55,23.776884]
[1734247841679,0.6878187,217.66,217.55,0.25098]
[1734247842067,0.6878187,217.66,217.55,8.27044634]
[1734247842677,0.6878187,217.66,217.57,0.25098]
[1734247843081,20.0,217.67,217.57,0.25098]
[1734247843564,20.0,217.67,217.57,8.27044634]
[1734247843763,7.8922,217.7,217.6,8.01946634]
[1734247844083,7.8922,217.7,217.61,24.027864]
[1734247845392,0.6878187,217.69,217.61,24.027864]
[1734247845962,7.8922,217.7,217.61,0.12549]
[1734247846772,2.3465187,217.75,217.64,0.12549]
[1734247847083,2.3465187,217.75,217.66,0.12549]
[1734247847385,0.6878187,217.75,217.66,0.12549]
[1734247847585,0.6878187,217.75,217.67,23.902374]
[1734247847891,0.6878187,217.75,217.67,0.12549]
[1734247848065,20.0,217.73,217.61,8.14495634]
[1734247848269,0.6878187,217.72,217.61,8.14495634]
[1734247848464,0.6878187,217.72,217.61,0.12549]
[1734247848664,0.6878187,217.72,217.6,0.25098]
[1734247848969,2.3465187,217.72,217.6,0.25098]
[1734247851390,2.3465187,217.72,217.62,0.25098]
[1734247852187,1.6587,217.72,217.62,0.25098]
[1734247852781,0.6878187,217.75,217.62,0.25098]
[1734247852782,0.6878187,217.75,217.64,12.7913448]
[1734247852982,0.6878187,217.75,217.66,0.25098]
[1734247853770,0.6878187,217.75,217.65,0.25098]
[1734247855169,20.0,217.73,217.64,0.12549]
[1734247855493,0.6878187,217.72,217.61,0.12549]
[1734247856278,0.6878187,217.72,217.61,12.7913448]
[1734247856678,0.6878187,217.72,217.63,0.25098]
[1734247857574,20.0,217.73,217.65,0.25098]
[1734247858175,8.06029487,217.76,217.67,0.25098]
[1734247860306,20.0,217.73,217.67,0.12549]
[1734247860511,0.6878187,217.72,217.67,0.12549]
[1734247861085,0.6878187,217.72,217.61,0.12549]
[1734247861284,0.6878187,217.72,217.59,14.1531648]
[1734247862182,0.6878187,217.72,217.6,0.12549]
[1734247862496,0.6878187,217.72,217.6,0.25098]
[1734247867421,20.0,217.68,217.59,1.6128]
[1734247867584,0.6878187,217.67,217.54,1.5473]
[1734247868695,0.6878187,217.67,217.55,0.25098]
[1734247868908,0.6878187,217.67,217.54,1.5473]
[1734247870291,0.6878187,217.67,217.55,0.25098]
[1734247872331,20.0,217.63,217.54,1.5473]
[1734247872492,0.6878187,217.62,217.48,1.64539]
[1734247872695,0.6878187,217.62,217.52,0.12549]
[1734247872924,20.6878187,217.65,217.54,0.12549]
[1734247873435,20.6878187,217.65,217.54,0.25098]
[1734247873729,20.6878187,217.65,217.53,0.25098]
[1734247874228,20.6878187,217.65,217.52,0.25098]
[1734247875596,20.6878187,217.65,217.5,12.6658548]
[1734247875788,20.6878187,217.65,217.49,13.22968971]
[1734247875992,20.0,217.61,217.48,1.5199]
[1734247876209,0.6878187,217.6,217.48,1.5199]
[1734247876420,0.6878187,217.6,217.49,0.12549]
[1734247876624,0.6878187,217.6,217.48,1.5199]
[1734247876993,20.0,217.57,217.48,1.5199]
[1734247877237,0.6878187,217.56,217.48,1.5199]
[1734247878609,0.6878187,217.56,217.44,0.12549]
[1734247878826,0.6878187,217.56,217.43,1.5199]
[1734247879024,0.6878187,217.56,217.44,0.12549]
[1734247879917,0.6878187,217.56,217.44,0.25098]
[1734247881207,23.776884,217.55,217.43,1.5199]
[1734247881434,0.6878187,217.54,217.43,1.5199]
[1734247882430,20.0,217.53,217.44,0.12549]
[1734247882736,0.6878187,217.55,217.44,13.48109821]
[1734247882907,0.6878187,217.59,217.46,0.25098]
[1734247883503,0.6878187,217.59,217.46,0.12549]
[1734247883704,0.6878187,217.59,217.45,0.25098]
[1734247884143,20.0,217.57,217.44,0.12549]
[1734247884305,0.6878187,217.56,217.44,0.12549]
[1734247884508,0.6878187,217.56,217.44,12.7913448]
[1734247884938,20.0,217.57,217.46,12.7913448]
[1734247885237,20.0,217.57,217.48,0.25098]
[1734247885816,0.6878187,217.56,217.46,0.12549]
[1734247887004,20.0,217.57,217.47,12.6658548]
[1734247887209,0.6878187,217.59,217.49,0.25098]
[1734247887732,0.6878187,217.59,217.49,0.12549]
[1734247887919,20.0,217.62,217.49,0.12549]
[1734247888234,0.6878187,217.61,217.48,0.25098]
[1734247888442,0.6878187,217.61,217.48,0.12549]
[1734247888949,0.6878187,217.61,217.47,0.12549]
[1734247890327,3.37726988,217.61,217.48,0.12549]
[1734247890525,3.37726988,217.61,217.48,0.25098]
[1734247891246,3.37726988,217.61,217.47,0.25098]
[1734247892518,3.37726988,217.61,217.46,0.25098]
[1734247892726,20.0,217.57,217.46,0.12549]
[1734247892921,0.6878187,217.56,217.46,0.12549]
[1734247893722,20.0,217.55,217.45,0.25098]
[1734247894041,0.6878187,217.54,217.45,0.12549]
[1734247895114,0.6878187,217.54,217.45,0.25098]
[1734247897332,0.6878187,217.54,217.45,0.12549]
[1734247900821,20.6878187,217.54,217.44,0.12549]
[1734247901018,20.0,217.5,217.43,1.5199]
[1734247901219,0.6878187,217.49,217.39,6.0857]
[1734247901443,0.6878187,217.49,217.35,8.03586475]
[1734247901444,0.6878187,217.49,217.38,1.573]
[1734247902150,23.776884,217.48,217.38,1.573]
[1734247902318,0.6878187,217.47,217.38,1.573]
[1734247902718,0.6878187,217.5,217.38,1.573]
[1734247903221,0.6878187,217.5,217.39,0.25098]
[1734247903417,24.4647027,217.53,217.39,0.25098]
[1734247903754,20.0,217.5,217.39,0.25098]
[1734247903957,0.6878187,217.49,217.39,0.25098]
[1734247904127,0.6878187,217.49,217.4,0.12549]
[1734247904450,20.0,217.49,217.4,0.12549]
[1734247904624,20.0,217.49,217.39,0.12549]
[1734247904625,0.6878187,217.48,217.39,0.12549]
[1734247906326,0.6878187,217.48,217.38,1.573]
[1734247907139,20.0,217.44,217.38,1.573]
[1734247907449,20.0,217.44,217.34,6.0857]
[1734247907450,0.6878187,217.43,217.34,6.0857]
[1734247907949,20.0,217.39,217.33,1.573]
[1734247908247,0.6878187,217.38,217.33,1.573]
[1734247910716,0.6878187,217.38,217.28,1.78389]
[1734247910956,0.6878187,217.38,217.28,1.6584]
[1734247912141,20.0,217.34,217.28,1.6584]
[1734247912458,0.6878187,217.33,217.28,1.6584]
[1734247914421,20.0,217.38,217.29,0.12549]
[1734247914651,0.6878187,217.37,217.29,0.12549]
[1734247916632,0.6878187,217.37,217.28,1.6584]
[1734247916856,23.776884,217.36,217.28,1.6584]
[1734247917056,0.6878187,217.35,217.28,1.6584]
[1734247917430,20.0,217.33,217.28,1.6584]
[1734247917651,0.6878187,217.32,217.28,1.6584]
[1734247919239,0.6878187,217.32,217.22,6.0788]
[1734247919240,0.6878187,217.32,217.23,1.6584]
[1734247920959,20.0,217.28,217.23,1.6584]
[1734247921257,0.6878187,217.27,217.18,1.6584]
[1734247923736,0.6878187,217.27,217.19,0.12549]
[1734247924454,0.6878187,217.27,217.18,1.6584]
[1734247925752,0.6878187,217.27,217.19,0.12549]
[1734247926737,0.6878187,217.27,217.18,1.6584]
[1734247930342,23.776884,217.26,217.18,1.6584]
[1734247930547,20.0,217.23,217.17,0.541143]
[1734247930739,0.6878187,217.22,217.17,0.541143]
[1734247931361,24.4647027,217.26,217.17,0.541143]
[1734247931668,20.0,217.19,217.17,0.541143]
[1734247931838,0.6878187,217.18,217.17,0.541143]
[1734247932459,0.6878187,217.18,217.17,4.3e-05]
[1734247932839,24.4647027,217.19,217.17,4.3e-05]
[1734247933562,24.4647027,217.19,217.08,1.571]
[1734247933563,20.0,217.12,217.08,1.571]
[1734247933745,0.6878187,217.11,217.08,1.571]
[1734247935052,20.0,217.15,217.08,1.571]
[1734247935254,20.0,217.1,216.95,0.541143]
[1734247935448,20.0,217.06,216.95,0.541143]
[1734247935641,0.6878187,217.05,216.95,0.541143]
[1734247935864,20.0,217.06,217.01,1.571]
[1734247936062,0.6878187,217.05,217.01,1.571]
[1734247936241,0.6878187,217.09,217.01,1.571]
[1734247936441,23.776884,217.08,217.01,1.571]
[1734247936641,0.6878187,217.07,217.01,1.571]
[1734247937148,0.6878187,217.07,216.95,0.541143]
[1734247937545,0.6878187,217.09,216.95,13.10906759]
[1734247937872,0.6878187,217.09,216.97,12.56792459]
[1734247938654,0.6878187,217.09,216.96,12.56792459]
[1734247939268,0.6878187,217.09,217.01,0.12549]
[1734247939764,20.0,217.11,217.01,0.12549]
[1734247939946,0.6878187,217.1,217.01,0.12549]
[1734247941560,20.0,217.06,216.95,0.541143]
[1734247941744,0.6878187,217.05,216.95,0.541143]
[1734247945265,20.0,217.01,216.95,0.541143]
[1734247945571,0.6878187,217.0,216.95,0.541143]
[1734247947771,23.776884,216.99,216.95,0.541143]
[1734247947956,0.6878187,216.98,216.95,0.541143]
[1734247948966,20.0,216.96,216.95,0.541143]
[1734247949167,44.4647027,216.96,216.95,0.541143]
[1734247949366,44.4647027,216.96,216.95,4.3e-05]
[1734247949570,23.776884,216.95,216.85,1.005]
[1734247949746,44.4647027,216.96,216.85,1.005]
[1734247949747,20.0,216.92,216.85,1.005]
[1734247949946,0.6878187,216.91,216.85,1.005]
[1734247950147,20.0,216.92,216.85,1.005]
[1734247950367,0.6878187,216.91,216.85,1.005]
[1734247951949,0.6878187,216.94,216.86,0.12549]
[1734247952149,0.6878187,217.0,216.86,0.12549]
[1734247953157,23.776884,216.99,216.86,0.25098]
[1734247953360,0.6878187,216.98,216.86,12.81890459]
[1734247953945,0.6878187,216.98,216.86,0.12549]
[1734247954350,0.6878187,217.0,216.86,0.12549]
[1734247954564,0.6878187,217.0,216.87,0.12549]
[1734247956271,0.6878187,217.0,216.88,0.12549]
[1734247956472,20.0,216.96,216.88,0.12549]
[1734247956676,0.6878187,216.95,216.85,1.005]
[1734247959280,0.6878187,216.95,216.86,0.12549]
[1734247960175,2.80520237,217.01,216.86,12.81890459]
[1734247960176,0.6878187,216.98,216.86,12.81890459]
[1734247960478,0.6878187,216.98,216.88,0.25098]
[1734247961075,0.6878187,217.0,216.87,0.12549]
[1734247961682,0.6878187,217.0,216.86,0.12549]
[1734247962175,0.6878187,217.0,216.85,13.57292459]
[1734247962176,23.776884,216.99,216.85,13.57292459]
[1734247962389,0.6878187,216.98,216.85,1.005]
[1734247962591,0.6878187,216.98,216.85,13.57292459]
[1734247963670,0.6878187,216.98,216.86,0.12549]
[1734247964071,0.6878187,216.98,216.86,0.25098]
[1734247964384,0.6878187,217.0,216.86,12.81890459]
[1734247965185,0.6878187,217.0,216.86,0.25098]
[1734247967490,0.6878187,217.0,216.88,12.81890459]
[1734247967660,0.6878187,217.0,216.9,0.12549]
[1734247968367,0.6878187,217.04,216.9,0.12549]
[1734247968574,2.73770002,217.02,216.9,0.12549]
[1734247968769,0.6878187,217.01,216.9,0.12549]
[1734247969590,0.6878187,217.01,216.91,1.5915]
[1734247969772,0.6878187,217.01,216.92,0.12549]
[1734247971302,0.6878187,217.01,216.91,1.5915]
[1734247978988,23.776884,217.0,216.91,1.5915]
[1734247979186,0.6878187,216.99,216.91,1.5915]
[1734247979486,20.0,216.97,216.91,1.5915]
[1734247979688,0.6878187,216.96,216.91,1.5915]
[1734247979868,0.6878187,216.96,216.87,6.2634]
[1734247980068,0.6878187,216.96,216.86,1.5618]
[1734247980264,0.1878187,216.96,216.86,1.5618]
[1734247980490,20.0,216.97,216.86,1.5618]
[1734247980792,23.776884,216.96,216.86,1.5618]
[1734247981167,19.5,216.97,216.86,1.5618]
[1734247981363,23.776884,216.97,216.86,1.5618]
[1734247981594,23.902374,216.99,216.86,1.5618]
[1734247983191,20.0,216.92,216.86,1.5618]
[1734247984399,23.776884,216.91,216.86,1.5618]
[1734247985263,20.0,216.88,216.86,1.5618]
[1734247985488,20.0,216.88,216.85,1.005]
[1734247990000,22.75262719,216.88,216.85,1.005]
[1734247991740,7.68565435,216.93,216.85,1.005]
[1734247991741,20.0,216.9,216.85,1.005]
[1734247991945,2.12650916,216.96,216.85,1.005]
[1734247992239,1.845,216.97,216.85,1.005]
[1734247992439,3.86562138,216.98,216.85,1.005]
[1734247992829,5.66072801,216.98,216.85,1.005]
[1734247993030,19.47072801,216.98,216.85,1.005]
[1734247993229,20.0,216.95,216.85,1.005]
[1734247993636,20.0,216.94,216.85,1.005]
[1734247994548,2.70951105,216.92,216.85,1.005]
[1734247994838,20.0,216.96,216.86,6.4164]
[1734247995150,3.86562138,216.98,216.86,6.4164]
[1734247995522,9.7424378,216.98,216.86,6.4164]
[1734247995739,2.79170621,216.94,216.86,6.4164]
[1734247996524,22.79170621,216.94,216.86,6.4164]
[1734247999948,20.0,216.98,216.87,1.5083]
[1734248002020,1.85200092,216.99,216.87,1.5083]
[1734248002021,20.0,216.94,216.87,1.5083]
[1734248002725,2.71451761,216.96,216.87,1.5083]
[1734248003442,2.71451761,216.96,216.85,1.005]
[1734248003443,20.0,216.92,216.85,1.005]
[1734248003940,23.776884,216.91,216.85,1.005]
[1734248004095,20.0,216.93,216.85,1.005]
[1734248004898,8.45645919,216.96,216.85,1.005]
[1734248004899,20.0,216.89,216.85,1.005]
[1734248008145,20.0,216.89,216.85,0.5239]
[1734248008803,20.0,216.86,216.85,0.5239]
[1734248009410,20.0,216.86,216.85,0.4277]
[1734248009610,20.0,216.85,216.74,6.957543]
[1734248009829,20.0,216.81,216.74,6.957543]
[1734248010020,20.0,216.81,216.74,0.541143]
[1734248010427,3.62341427,216.84,216.74,0.541143]
[1734248010428,20.0,216.82,216.74,0.541143]
[1734248010628,20.0,216.78,216.74,0.541143]
[1734248010824,23.776884,216.81,216.74,0.541143]
[1734248010825,20.0,216.76,216.74,0.541143]
[1734248011208,20.0,216.76,216.63,1.6231]
[1734248011529,20.0,216.72,216.63,1.6231]
[1734248011734,20.0,216.72,216.63,1.1231]
[1734248011925,23.902374,216.71,216.63,1.1231]